fUST/lending_fUST_20240812
["ID","MTS","AMOUNT","RATE_DAILY","PERIOD"]
[334673084,1723458633070,-230.29,0.00020791,3]
[334673085,1723458633081,-294.913721,0.000208,2]
[334673086,1723458633090,-12799.90648465,0.00020811,2]
[334673087,1723458633111,-6411.18717434,0.00020811,2]
[334673103,1723458640852,-9413.68027991,0.00020811,2]
[334673104,1723458640862,-272.09632744,0.0002082,2]
[334673105,1723458640872,-451.38919352,0.0002082,2]
[334673106,1723458640883,-1989.03207856,0.00020821,11]
[334673107,1723458640893,-500.0,0.00020821,3]
[334673108,1723458640909,-500.0,0.00020821,3]
[334673109,1723458640919,-555.09,0.00020821,3]
[334673111,1723458640930,-500.0,0.00020821,3]
[334673114,1723458640941,-500.0,0.00020821,3]
[334673116,1723458640950,-500.0,0.00020821,3]
[334673118,1723458640960,-675.07,0.00020821,3]
[334673120,1723458640969,-500.0,0.00020821,3]
[334673122,1723458640979,-500.0,0.00020821,3]
[334673124,1723458640990,-508.3166345,0.00020821,3]
[334673126,1723458640999,-508.75605454,0.00020821,3]
[334673128,1723458641009,-500.0,0.00020821,3]
[334673130,1723458641020,-500.0,0.00020821,3]
[334673132,1723458641031,-658.33,0.00020821,3]
[334673134,1723458641041,-384.23911903,0.00020821,3]
[334673136,1723458641052,-503.24843815,0.00020821,3]
[334673138,1723458641062,-540.64,0.00020821,3]
[334673141,1723458641072,-511.2077985,0.00020821,3]
[334673143,1723458641082,-545.7691022,0.00020821,3]
[334673145,1723458641092,-500.0,0.00020821,3]
[334673147,1723458641101,-500.0,0.00020821,3]
[334673149,1723458641110,-500.73988775,0.00020821,3]
[334673151,1723458641120,-522.5658529,0.00020821,3]
[334673153,1723458641129,-200.0,0.00020821,3]
[334673155,1723458641139,-500.0,0.00020821,3]
[334673157,1723458641148,-872.71,0.00020821,3]
[334673159,1723458641157,-500.0,0.00020821,3]
[334673161,1723458641167,-500.0,0.00020821,3]
[334673162,1723458641177,-502.78650335,0.00020821,3]
[334673163,1723458641188,-500.0,0.00020821,3]
[334673164,1723458641197,-500.0,0.00020821,3]
[334673165,1723458641207,-152.30821725,0.00020821,3]
[334673166,1723458641215,-500.0,0.00020821,3]
[334673167,1723458641225,-500.0,0.00020821,3]
[334673168,1723458641234,-500.0,0.00020821,3]
[334673169,1723458641244,-506.04159792,0.00020821,3]
[334673170,1723458641254,-503.34318761,0.00020821,3]
[334673171,1723458641263,-511.03850065,0.00020821,3]
[334673172,1723458641275,-879.27,0.00020821,3]
[334673173,1723458641284,-506.28635247,0.00020821,3]
[334673174,1723458641301,-500.18536811,0.00020821,2]
[334673175,1723458641311,-137.67416032,0.00020821,3]
[334673221,1723458644131,-77.78364162,0.00020821,3]
[334673226,1723458650246,153.0,0.00016641,2]
[334673230,1723458724484,3767.31168417,0.00016641,2]
[334673231,1723458724506,5239.80383555,0.00016641,2]
[334673232,1723458724527,4734.35758933,0.00016641,2]
[334673233,1723458724550,229.60514822,0.00016641,2]
[334673234,1723458724574,205.90167892,0.00016641,2]
[334673235,1723458724595,163.52676397,0.00016641,2]
[334673236,1723458724619,83.30068964,0.00016641,2]
[334673237,1723458724818,4708.54981393,0.00016641,2]
[334673239,1723458774122,230.29,0.00010959,2]
[334673240,1723458784852,191.9,0.00010959,2]
[334673241,1723458795386,159.92,0.00010959,2]
[334673244,1723458805941,799.63,0.00010959,2]
[334673245,1723458922915,10000.0,0.00016,2]
[334673246,1723458929807,10000.0,0.00016,2]
[334673247,1723458935544,10000.0,0.00016,2]
[334673248,1723458940833,10000.0,0.00016,2]
[334673249,1723458947428,10000.0,0.00016,2]
[334673250,1723458974503,6163.93046029,0.00016,2]
[334673251,1723459082690,165.257591,0.00014247,2]
[334673253,1723459268211,500.0,0.00027,120]
[334673263,1723459500926,10000.0,0.000151,2]
[334673264,1723459530164,-223.32245684,0.0001611,2]
[334673265,1723459530190,-195.58847362,0.00016159,2]
[334673266,1723459530220,-250.0,0.00016525,2]
[334673267,1723459530247,-26.84683011,0.00018825,2]
[334673268,1723459537071,168.846,0.000151,2]
[334673269,1723459555526,108512.38515883,0.000151,2]
[334673270,1723459605351,10000.0,0.00025,60]
[334673271,1723459631682,167.578979,0.00014247,2]
[334673272,1723459635112,-153.0,0.00016438,2]
[334673273,1723459635134,-36.73315401,0.00016438,2]
[334673274,1723459638103,-116.26684599,0.00016438,2]
[334673275,1723459638127,-135.80507174,0.00018302,2]
[334673276,1723459638156,-164.19492826,0.00018302,2]
[334673277,1723459638178,-4771.67070886,0.00018303,2]
[334673278,1723459644301,-1375.8064031,0.00018303,2]
[334673279,1723459649106,-220.99390606,0.00018303,2]
[334673280,1723459696534,10000.0,0.000151,2]
[334673281,1723459749320,-153.0,0.00016438,2]
[334673282,1723459749343,-153.0,0.00016438,2]
[334673283,1723459749370,-153.0,0.00016438,2]
[334673284,1723459749395,-153.0,0.00016438,2]
[334673285,1723459749419,-153.0,0.00016438,2]
[334673286,1723459749443,-153.0,0.00016438,2]
[334673287,1723459790743,153.0,0.00016438,2]
[334673323,1723459838113,-2280.2888261,0.00018773,3]
[334673324,1723459838124,-4554.64266728,0.00018773,2]
[334673325,1723459838134,-300.0,0.00018824,2]
[334673326,1723459838143,-1108.11630335,0.00018825,2]
[334673327,1723459838153,-1163.86062826,0.00018825,2]
[334673328,1723459838164,-154.77557542,0.00018899,2]
[334673329,1723459838176,-342.51186049,0.00018899,2]
[334673330,1723459838185,-168.345823,0.00018904,2]
[334673331,1723459838195,-318.87233743,0.0001891,2]
[334673332,1723459838207,-305.33117801,0.00018921,2]
[334673333,1723459838217,-154.76012181,0.00018945,2]
[334673334,1723459838227,-154.76012181,0.00018945,2]
[334673335,1723459838237,-154.77557542,0.00018989,2]
[334673336,1723459838247,-150.0,0.000191,2]
[334673337,1723459838258,-155.33433152,0.00019155,2]
[334673338,1723459838269,-151.90208824,0.0001987,2]
[334673339,1723459838279,-1000.0,0.0002,20]
[334673340,1723459838291,-150.112233,0.000201,3]
[334673341,1723459838302,-253.23688007,0.00020171,2]
[334673342,1723459838316,-150.112233,0.000204,4]
[334673343,1723459838327,-996.23369881,0.00020599,2]
[334673344,1723459838336,-4990.57155281,0.000206,2]
[334673345,1723459838346,-4990.5715528,0.0002063,2]
[334673346,1723459838357,-2810.49945448,0.00020657,2]
[334673347,1723459838366,-190.05368279,0.00020689,2]
[334673348,1723459838376,-500.0,0.00020689,2]
[334673349,1723459838386,-615.47283644,0.00020689,2]
[334673350,1723459838398,-500.0,0.00020689,2]
[334673351,1723459838408,-500.0,0.00020689,2]
[334673352,1723459838418,-51674.05091691,0.0002069,2]
[334673353,1723459838431,-726.10323412,0.0002069,2]
[334673354,1723459838444,-13203.76754907,0.0002069,2]
[334673355,1723459838456,-150.112233,0.000207,5]
[334673356,1723459838466,-420.0,0.00020706,2]
[334673357,1723459838475,-4256.98487402,0.00020711,2]
[334673358,1723459838485,-151.0,0.00020721,2]
[334673359,1723459838495,-195.58514,0.00020721,2]
[334673360,1723459838504,-151.0,0.00020721,2]
[334673361,1723459838513,-170.714184,0.00020721,2]
[334673362,1723459838523,-151.0,0.00020721,2]
[334673363,1723459838532,-1496.20070637,0.00020721,2]
[334673364,1723459838542,-31550.16684129,0.00020721,3]
[334673365,1723459838588,-77.47969225,0.00020721,3]
[334673366,1723459838600,-57260.35346646,0.00020721,3]
[334673367,1723459838609,-4256.98487402,0.00020811,2]
[334673368,1723459838619,-151.0,0.00020811,2]
[334673369,1723459838628,-151.0,0.00020811,2]
[334673370,1723459838638,-151.0,0.00020811,2]
[334673371,1723459838648,-151.0,0.00020811,2]
[334673372,1723459838658,-151.0,0.00020811,2]
[334673373,1723459838668,-151.0,0.00020811,2]
[334673374,1723459838677,-151.0,0.00020811,2]
[334673375,1723459838686,-151.0,0.00020811,2]
[334673376,1723459838695,-191.482964,0.00020811,2]
[334673377,1723459838705,-191.482964,0.00020811,2]
[334673378,1723459838714,-191.482964,0.00020811,2]
[334673379,1723459838724,-191.482964,0.00020811,2]
[334673380,1723459838733,-151.0,0.00020811,2]
[334673381,1723459838743,-151.0,0.00020811,2]
[334673382,1723459838752,-151.0,0.00020811,2]
[334673383,1723459838761,-68111.7579843,0.00020811,2]
[334673384,1723459838770,-272.09632744,0.0002082,2]
[334673385,1723459838780,-29110.82508028,0.00020821,11]
[334673386,1723459838790,-151.0,0.00020821,2]
[334673387,1723459838800,-167.796544,0.00020821,2]
[334673388,1723459838809,-500.0,0.00020821,3]
[334673389,1723459838818,-500.0,0.00020821,3]
[334673390,1723459838827,-504.51658871,0.00020821,3]
[334673391,1723459838836,-1262.68,0.00020821,3]
[334673392,1723459838846,-500.0,0.00020821,3]
[334673393,1723459838855,-500.0,0.00020821,3]
[334673394,1723459838864,-500.0,0.00020821,3]
[334673395,1723459838874,-505.0,0.00020821,3]
[334673396,1723459838883,-512.53553775,0.00020821,3]
[334673397,1723459838893,-500.0,0.00020821,3]
[334673398,1723459838903,-500.0,0.00020821,3]
[334673399,1723459838914,-500.0,0.00020821,3]
[334673400,1723459838924,-479.47739237,0.00020821,3]
[334673401,1723459838933,-500.0,0.00020821,3]
[334673402,1723459838943,-500.0,0.00020821,3]
[334673403,1723459838952,-500.0,0.00020821,3]
[334673404,1723459838961,-501.7475152,0.00020821,3]
[334673405,1723459838970,-500.0,0.00020821,3]
[334673406,1723459838980,-502.07607423,0.00020821,3]
[334673407,1723459838989,-511.68645328,0.00020821,3]
[334673408,1723459838999,-500.0,0.00020821,3]
[334673409,1723459839008,-500.0,0.00020821,3]
[334673410,1723459839018,-500.0,0.00020821,3]
[334673411,1723459839027,-500.0,0.00020821,3]
[334673412,1723459839037,-506.08398547,0.00020821,3]
[334673413,1723459839046,-505.79921518,0.00020821,3]
[334673414,1723459839056,-500.0,0.00020821,3]
[334673415,1723459839065,-500.0,0.00020821,3]
[334673416,1723459839074,-500.0,0.00020821,3]
[334673417,1723459839084,-1307.66,0.00020821,3]
[334673418,1723459839094,-651.58,0.00020821,3]
[334673419,1723459839103,-500.0,0.00020821,3]
[334673420,1723459839113,-500.0,0.00020821,3]
[334673421,1723459839122,-500.0,0.00020821,3]
[334673422,1723459839131,-500.18536811,0.00020821,2]
[334673423,1723459839140,-500.0,0.00020821,3]
[334673424,1723459839150,-502.07461869,0.00020821,3]
[334673425,1723459839161,-500.0,0.00020821,3]
[334673426,1723459839170,-500.0,0.00020821,3]
[334673427,1723459839179,-837.39,0.00020821,3]
[334673428,1723459839189,-630.74,0.00020821,3]
[334673429,1723459839198,-500.0,0.00020821,3]
[334673430,1723459839207,-500.0,0.00020821,3]
[334673431,1723459839216,-405.80504432,0.00020821,3]
[334673432,1723459839225,-500.0,0.00020821,3]
[334673433,1723459839235,-506.01154544,0.00020821,3]
[334673434,1723459839247,-504.46139654,0.00020821,3]
[334673435,1723459839256,-500.0,0.00020821,3]
[334673436,1723459839266,-505.34929325,0.00020821,3]
[334673437,1723459839275,-507.03722635,0.00020821,3]
[334673438,1723459839284,-470.03019816,0.00020821,3]
[334673439,1723459839294,-500.0,0.00020821,3]
[334673440,1723459839303,-500.0,0.00020821,3]
[334673441,1723459839313,-500.0,0.00020821,3]
[334673442,1723459839326,-500.0,0.00020821,3]
[334673444,1723459839336,-500.0,0.00020821,3]
[334673445,1723459839345,-1000.0,0.00020821,2]
[334673446,1723459839355,-1000.0,0.00020821,2]
[334673447,1723459839366,-1000.0,0.00020821,2]
[334673448,1723459839376,-1000.0,0.00020821,2]
[334673449,1723459839385,-1000.0,0.00020821,2]
[334673450,1723459839396,-1000.0,0.00020821,2]
[334673451,1723459839408,-2435.62,0.00020821,3]
[334673452,1723459839418,-1000.0,0.00020821,2]
[334673453,1723459839428,-1000.0,0.00020821,2]
[334673454,1723459839438,-1000.0,0.00020821,2]
[334673455,1723459839448,-1000.0,0.00020821,2]
[334673456,1723459839458,-1000.0,0.00020821,2]
[334673457,1723459839467,-1000.0,0.00020821,2]
[334673459,1723459839476,-1000.0,0.00020821,2]
[334673460,1723459839486,-1000.0,0.00020821,2]
[334673461,1723459839496,-1000.0,0.00020821,2]
[334673462,1723459839506,-1000.0,0.00020821,2]
[334673463,1723459839515,-1000.0,0.00020821,2]
[334673464,1723459839524,-1000.0,0.00020821,2]
[334673465,1723459839533,-1000.0,0.00020821,2]
[334673466,1723459839543,-151.0,0.00020821,2]
[334673467,1723459839552,-1000.0,0.00020821,2]
[334673468,1723459839562,-151.0,0.00020821,2]
[334673469,1723459839574,-1000.0,0.00020821,2]
[334673470,1723459839584,-151.0,0.00020821,2]
[334673471,1723459839593,-1000.0,0.00020821,2]
[334673472,1723459839603,-500.0,0.00020821,3]
[334673473,1723459839615,-151.0,0.00020821,2]
[334673474,1723459839624,-1000.0,0.00020821,2]
[334673475,1723459839634,-151.0,0.00020821,2]
[334673476,1723459839643,-1000.0,0.00020821,2]
[334673477,1723459839654,-151.0,0.00020821,2]
[334673478,1723459839664,-1000.0,0.00020821,2]
[334673479,1723459839676,-151.0,0.00020821,2]
[334673480,1723459839687,-1000.0,0.00020821,2]
[334673481,1723459839696,-151.0,0.00020821,2]
[334673489,1723459839843,-1000.0,0.00020821,2]
[334673491,1723459839853,-1000.0,0.00020821,2]
[334673493,1723459839863,-1000.0,0.00020821,2]
[334673495,1723459839872,-500.0,0.00020821,3]
[334673497,1723459839883,-1000.0,0.00020821,2]
[334673499,1723459839893,-151.0,0.00020821,2]
[334673501,1723459839902,-1000.0,0.00020821,2]
[334673503,1723459839914,-151.0,0.00020821,2]
[334673505,1723459839924,-1000.0,0.00020821,2]
[334673508,1723459839936,-151.0,0.00020821,2]
[334673509,1723459839946,-1000.0,0.00020821,2]
[334673511,1723459839955,-254.340572,0.00020821,2]
[334673513,1723459839964,-1000.0,0.00020821,2]
[334673515,1723459839974,-500.0,0.00020821,3]
[334673518,1723459839985,-1000.0,0.00020821,2]
[334673520,1723459839997,-1000.0,0.00020821,2]
[334673521,1723459840009,-500.0,0.00020821,3]
[334673522,1723459840019,-1000.0,0.00020821,2]
[334673523,1723459840029,-1000.0,0.00020821,2]
[334673524,1723459840039,-1000.0,0.00020821,2]
[334673525,1723459840051,-1000.0,0.00020821,2]
[334673526,1723459840064,-1000.0,0.00020821,2]
[334673527,1723459840074,-1274.63,0.00020821,3]
[334673528,1723459840084,-1000.0,0.00020821,2]
[334673529,1723459840093,-1000.0,0.00020821,2]
[334673530,1723459840102,-1000.0,0.00020821,2]
[334673531,1723459840112,-1000.0,0.00020821,2]
[334673532,1723459840122,-1000.0,0.00020821,2]
[334673533,1723459840132,-1000.0,0.00020821,2]
[334673534,1723459840143,-1000.0,0.00020821,2]
[334673535,1723459840153,-1000.0,0.00020821,2]
[334673536,1723459840163,-1094.35,0.00020821,3]
[334673537,1723459840173,-1000.0,0.00020821,2]
[334673538,1723459840183,-1000.0,0.00020821,2]
[334673539,1723459840192,-1000.0,0.00020821,2]
[334673540,1723459840201,-1000.0,0.00020821,2]
[334673541,1723459840210,-1000.0,0.00020821,2]
[334673542,1723459840220,-1000.0,0.00020821,2]
[334673543,1723459840230,-500.0,0.00020821,3]
[334673544,1723459840239,-1000.0,0.00020821,2]
[334673545,1723459840249,-1000.0,0.00020821,2]
[334673546,1723459840258,-1000.0,0.00020821,2]
[334673547,1723459840267,-1000.0,0.00020821,2]
[334673548,1723459840277,-1000.0,0.00020821,2]
[334673549,1723459840286,-1000.0,0.00020821,2]
[334673550,1723459840298,-1000.0,0.00020821,2]
[334673551,1723459840307,-1000.0,0.00020821,2]
[334673552,1723459840322,-1000.0,0.00020821,2]
[334673553,1723459840332,-1000.0,0.00020821,2]
[334673554,1723459840341,-951.777856,0.00020821,2]
[334673555,1723459840351,-500.0,0.00020821,3]
[334673556,1723459840361,-500.80828887,0.00020821,3]
[334673557,1723459840371,-500.0,0.00020821,3]
[334673558,1723459840380,-502.03387557,0.00020821,3]
[334673559,1723459840390,-395.85058627,0.00020821,3]
[334673560,1723459840401,-151.0,0.00020821,2]
[334673561,1723459840413,-151.0,0.00020821,2]
[334673562,1723459840423,-500.0,0.00020821,3]
[334673563,1723459840433,-151.0,0.00020821,2]
[334673564,1723459840443,-151.0,0.00020821,2]
[334673565,1723459840452,-151.0,0.00020821,2]
[334673566,1723459840462,-151.0,0.00020821,2]
[334673567,1723459840472,-500.0,0.00020821,3]
[334673568,1723459840481,-151.0,0.00020821,2]
[334673569,1723459840493,-501.90565031,0.00020821,3]
[334673570,1723459840502,-500.0,0.00020821,2]
[334673571,1723459840511,-500.0,0.00020821,3]
[334673572,1723459840522,-504.70552119,0.00020821,3]
[334673573,1723459840531,-500.0,0.00020821,3]
[334673574,1723459840542,-1390.81,0.00020821,3]
[334673575,1723459840552,-500.0,0.00020821,3]
[334673576,1723459840561,-500.0,0.00020821,3]
[334673577,1723459840571,-500.0,0.00020821,3]
[334673578,1723459840580,-500.0,0.00020821,3]
[334673579,1723459840589,-500.0,0.00020821,3]
[334673580,1723459840600,-500.0,0.00020821,3]
[334673581,1723459840609,-1052.42,0.00020821,3]
[334673582,1723459840621,-509.90107771,0.00020821,3]
[334673583,1723459840632,-500.0,0.00020821,3]
[334673584,1723459840643,-500.0,0.00020821,3]
[334673585,1723459840654,-500.0,0.00020821,3]
[334673586,1723459840665,-500.0,0.00020821,3]
[334673587,1723459840674,-500.0,0.00020821,3]
[334673588,1723459840684,-507.50428328,0.00020821,3]
[334673589,1723459840693,-500.0,0.00020821,3]
[334673590,1723459840703,-500.0,0.00020821,3]
[334673591,1723459840712,-500.0,0.00020821,3]
[334673592,1723459840722,-500.0,0.00020821,3]
[334673593,1723459840731,-500.0,0.00020821,3]
[334673594,1723459840741,-500.0,0.00020821,3]
[334673595,1723459840750,-503.68425534,0.00020821,3]
[334673596,1723459840760,-500.0,0.00020821,3]
[334673597,1723459840769,-862.33,0.00020821,3]
[334673598,1723459840779,-500.0,0.00020821,3]
[334673599,1723459840788,-500.0,0.00020821,3]
[334673600,1723459840798,-500.0,0.00020821,3]
[334673601,1723459840808,-500.0,0.00020821,3]
[334673602,1723459840818,-500.0,0.00020821,3]
[334673603,1723459840827,-530.390389,0.00020821,2]
[334673604,1723459840836,-530.390389,0.00020821,2]
[334673605,1723459840845,-530.390395,0.00020821,2]
[334673606,1723459840854,-500.0,0.00020821,3]
[334673607,1723459840863,-505.7020919,0.00020821,3]
[334673608,1723459840872,-1072.78,0.00020821,3]
[334673609,1723459840882,-500.0,0.00020821,3]
[334673610,1723459840891,-500.0,0.00020821,3]
[334673611,1723459840901,-512.19781729,0.00020821,3]
[334673612,1723459840911,-500.0,0.00020821,3]
[334673613,1723459840921,-500.0,0.00020821,3]
[334673614,1723459840930,-1073.9,0.00020821,3]
[334673615,1723459840940,-515.57,0.00020821,3]
[334673616,1723459840950,-500.0,0.00020821,3]
[334673617,1723459840959,-500.0,0.00020821,3]
[334673618,1723459840968,-500.0,0.00020821,3]
[334673619,1723459840977,-506.77563459,0.00020821,3]
[334673620,1723459840988,-500.0,0.00020821,3]
[334673621,1723459840998,-500.0,0.00020821,3]
[334673622,1723459841007,-500.0,0.00020821,3]
[334673623,1723459841016,-500.0,0.00020821,3]
[334673624,1723459841026,-948.88,0.00020821,3]
[334673625,1723459841035,-500.0,0.00020821,3]
[334673626,1723459841044,-500.0,0.00020821,3]
[334673627,1723459841054,-500.0,0.00020821,3]
[334673628,1723459841063,-982.1,0.00020821,3]
[334673629,1723459841072,-500.0,0.00020821,3]
[334673630,1723459841081,-500.0,0.00020821,3]
[334673631,1723459841092,-500.0,0.00020821,3]
[334673632,1723459841101,-167.83682051,0.00020821,3]
[334673633,1723459841110,-500.0,0.00020821,3]
[334673634,1723459841119,-500.0,0.00020821,3]
[334673635,1723459841128,-1184.02,0.00020821,3]
[334673636,1723459841138,-503.41653541,0.00020821,3]
[334673637,1723459841147,-500.0,0.00020821,3]
[334673638,1723459841156,-500.0,0.00020821,3]
[334673639,1723459841167,-500.0,0.00020821,3]
[334673640,1723459841176,-500.0,0.00020821,3]
[334673641,1723459841186,-500.0,0.00020821,3]
[334673642,1723459841195,-500.0,0.00020821,3]
[334673643,1723459841204,-500.0,0.00020821,3]
[334673644,1723459841214,-500.0,0.00020821,3]
[334673645,1723459841223,-500.0,0.00020821,3]
[334673646,1723459841233,-500.0,0.00020821,3]
[334673647,1723459841242,-500.0,0.00020821,3]
[334673648,1723459841251,-500.0,0.00020821,3]
[334673649,1723459841261,-500.0,0.00020821,3]
[334673650,1723459841270,-762.2,0.00020821,3]
[334673651,1723459841279,-500.0,0.00020821,3]
[334673652,1723459841289,-502.6501975,0.00020821,3]
[334673653,1723459841298,-500.0,0.00020821,3]
[334673654,1723459841307,-933.49,0.00020821,3]
[334673655,1723459841320,-500.0,0.00020821,3]
[334673656,1723459841329,-502.38200505,0.00020821,3]
[334673657,1723459841338,-140.76829778,0.00020821,3]
[334673668,1723459842659,-314.47399217,0.00020821,3]
[334673672,1723459842857,-4990.5715528,0.00020661,2]
[334673674,1723459842867,-223.42771005,0.00020821,3]
[334673676,1723459842876,-500.0,0.00020821,3]
[334673678,1723459842886,-500.0,0.00020821,3]
[334673680,1723459842895,-776.91,0.00020821,3]
[334673682,1723459842905,-1618.87,0.00020821,3]
[334673684,1723459842917,-500.0,0.00020821,3]
[334673686,1723459842926,-504.91557058,0.00020821,3]
[334673688,1723459842935,-1326.52,0.00020821,3]
[334673690,1723459842945,-574.24,0.00020821,3]
[334673692,1723459842954,-500.0,0.00020821,3]
[334673694,1723459842964,-633.77,0.00020821,3]
[334673696,1723459842973,-612.28,0.00020821,3]
[334673698,1723459842983,-500.0,0.00020821,3]
[334673700,1723459842992,-500.0,0.00020821,3]
[334673702,1723459843001,-503.13859673,0.00020821,3]
[334673704,1723459843011,-462.53174497,0.00020821,3]
[334673706,1723459843023,-363.50825503,0.00020821,3]
[334673708,1723459843032,-445.37233976,0.00020821,3]
[334673709,1723459843044,-54.62766024,0.00020821,3]
[334673710,1723459843054,-505.1534437,0.00020821,3]
[334673711,1723459843063,-604.6,0.00020821,3]
[334673712,1723459843073,-500.0,0.00020821,3]
[334673713,1723459843083,-574.32,0.00020821,3]
[334673714,1723459843092,-500.0,0.00020821,3]
[334673715,1723459843102,-500.0,0.00020821,3]
[334673716,1723459843111,-500.0,0.00020821,3]
[334673717,1723459843120,-795.16,0.00020821,3]
[334673718,1723459843129,-2030.82,0.00020821,3]
[334673719,1723459843140,-500.0,0.00020821,3]
[334673720,1723459843150,-829.85,0.00020821,3]
[334673721,1723459843159,-709.13,0.00020821,3]
[334673722,1723459843174,-500.0,0.00020821,3]
[334673723,1723459843184,-501.4743432,0.00020821,3]
[334673724,1723459843194,-1227.85,0.00020821,3]
[334673725,1723459843203,-500.0,0.00020821,3]
[334673726,1723459843213,-574.42,0.00020821,3]
[334673727,1723459843222,-509.39676028,0.00020821,3]
[334673728,1723459843231,-500.0,0.00020821,3]
[334673729,1723459843241,-500.0,0.00020821,3]
[334673730,1723459843250,-500.0,0.00020821,3]
[334673731,1723459843259,-500.0,0.00020821,3]
[334673732,1723459843268,-502.36932696,0.00020821,3]
[334673733,1723459843278,-500.0,0.00020821,3]
[334673734,1723459843287,-500.0,0.00020821,3]
[334673735,1723459843297,-581.43,0.00020821,3]
[334673736,1723459843307,-1139.51,0.00020821,3]
[334673737,1723459843320,-506.12883141,0.00020821,3]
[334673738,1723459843329,-500.0,0.00020821,3]
[334673739,1723459843339,-151.0,0.00020821,2]
[334673740,1723459843348,-151.0,0.00020821,2]
[334673741,1723459843358,-151.0,0.00020821,2]
[334673742,1723459843367,-151.0,0.00020821,2]
[334673743,1723459843378,-500.0,0.00020821,3]
[334673744,1723459843388,-151.0,0.00020821,2]
[334673745,1723459843398,-151.0,0.00020821,2]
[334673746,1723459843408,-151.0,0.00020821,2]
[334673747,1723459843424,-151.0,0.00020821,2]
[334673748,1723459843439,-151.0,0.00020821,2]
[334673749,1723459843448,-151.0,0.00020821,2]
[334673750,1723459843457,-151.0,0.00020821,2]
[334673751,1723459843466,-151.0,0.00020821,2]
[334673752,1723459843475,-151.0,0.00020821,2]
[334673753,1723459843486,-276.31063,0.00020821,2]
[334673754,1723459843495,-521.61,0.00020821,3]
[334673755,1723459843504,-502.68630497,0.00020821,3]
[334673756,1723459843514,-422.79778272,0.00020821,3]
[334673757,1723459843526,-500.0,0.00020821,3]
[334673758,1723459843536,-500.0,0.00020821,3]
[334673759,1723459843545,-102.47831858,0.00020821,3]
[334673767,1723459844030,-96.61954264,0.00020171,2]
[334673779,1723459846085,-111.49028675,0.00019925,2]
[334673780,1723459851257,71.00630958,0.00016438,2]
[334673781,1723459851284,81.99369042,0.00016438,2]
[334673811,1723460595678,166.573908,0.00014247,2]
[334673812,1723460632606,273.37336231,9.9e-05,2]
[334673813,1723460640521,273.37336231,9.9e-05,2]
[334673814,1723460656198,273.37336231,9.9e-05,2]
[334673815,1723460669693,189.93381828,0.00012,2]
[334673816,1723460696166,1201.80870259,9.9e-05,2]
[334673817,1723460696437,3785.54866294,9.9e-05,2]
[334673818,1723460704183,1201.80870259,9.9e-05,2]
[334673819,1723460707256,510.00019594,0.00012,2]
[334673820,1723460722598,357.18103906,0.00014545,2]
[334673821,1723460723997,809.10695268,0.00014545,2]
[334673822,1723460728216,1239.69729321,0.00012,2]
[334673823,1723460729236,451.89339907,0.00014545,2]
[334673824,1723460730361,2269.8181466,0.00014545,2]
[334673825,1723460748684,2401.95140953,0.00014545,2]
[334673826,1723460764844,309.39667648,0.00014545,2]
[334673827,1723460829171,-326.13647714,0.00016338,2]
[334673828,1723460834200,-254.9786404,0.00016338,2]